fUST/lending_fUST_20250627
["ID","MTS","AMOUNT","RATE_DAILY","PERIOD"]
[367886341,1750955438315,-500.0,0.00016373,2]
[367886343,1750955438324,-500.0,0.00016373,2]
[367886345,1750955438333,-318.58267069,0.00016373,2]
[367886347,1750955438342,-500.0,0.00016373,2]
[367886349,1750955438351,-500.0,0.00016373,2]
[367886351,1750955438361,-500.0,0.00016373,2]
[367886353,1750955438370,-500.0,0.00016373,2]
[367886355,1750955438379,-375.78683165,0.00016373,2]
[367886357,1750955438388,-500.0,0.00016373,2]
[367886359,1750955438397,-500.0,0.00016373,2]
[367886361,1750955438407,-500.0,0.00016373,2]
[367886363,1750955438416,-500.0,0.00016373,2]
[367886365,1750955438425,-500.0,0.00016373,2]
[367886367,1750955438435,-500.0,0.00016373,2]
[367886369,1750955438444,-500.0,0.00016373,2]
[367886371,1750955438453,-503.27602329,0.00016373,2]
[367886373,1750955438462,-500.0,0.00016373,2]
[367886375,1750955438472,-500.0,0.00016373,2]
[367886377,1750955438481,-627.19226716,0.00016373,2]
[367886379,1750955438494,-500.0,0.00016373,2]
[367886381,1750955438503,-500.0,0.00016373,2]
[367886383,1750955438512,-1000.0,0.00016438,2]
[367886385,1750955438522,-1000.0,0.00016438,2]
[367886387,1750955438533,-500.0,0.00016438,2]
[367886389,1750955438542,-500.30344921,0.00016712,2]
[367886391,1750955438551,-325.30533255,0.00016921,2]
[367886393,1750955438560,-504.70859062,0.00016921,2]
[367886395,1750955438571,-1000.0,0.00016921,2]
[367886397,1750955438582,-1000.0,0.00016921,2]
[367886399,1750955438592,-502.36847634,0.00016921,2]
[367886401,1750955438602,-500.0,0.00016921,2]
[367886403,1750955438617,-302.07678004,0.00016921,2]
[367886405,1750955438626,-500.0,0.00016921,2]
[367886407,1750955438636,-1000.0,0.00016921,2]
[367886409,1750955438645,-503.61778586,0.00016921,2]
[367886411,1750955438655,-1000.0,0.00016921,2]
[367886413,1750955438664,-1000.0,0.00016921,2]
[367886415,1750955438673,-1000.0,0.00016921,2]
[367886417,1750955438683,-501.8969566,0.00016921,2]
[367886419,1750955438692,-1001.20861726,0.00016921,2]
[367886421,1750955438701,-1000.0,0.00016921,2]
[367886423,1750955438711,-151.0,0.00017,2]
[367886425,1750955438721,-151.0,0.000171,2]
[367886427,1750955438730,-4702.53453177,0.000171,2]
[367886429,1750955438741,-2860.6738257,0.00017108,2]
[367886431,1750955438750,-4588.07040311,0.00017144,2]
[367886433,1750955438761,-500.0,0.00017209,2]
[367886435,1750955438770,-500.0,0.00017209,2]
[367886437,1750955438780,-500.0,0.00017209,2]
[367886439,1750955438789,-500.0,0.00017209,2]
[367886441,1750955438799,-185.97411569,0.00017209,2]
[367886443,1750955438808,-202.56454071,0.00017209,2]
[367886448,1750955438849,-297.43545929,0.00017209,2]
[367886450,1750955438858,-198.30453991,0.00017209,2]
[367886461,1750955438954,-261.36310053,0.00017209,2]
[367886463,1750955438965,-500.0,0.00017209,2]
[367886465,1750955438974,-4702.53453159,0.0001721,2]
[367886467,1750955438983,-151.0,0.000174,2]
[367886469,1750955438993,-151.0,0.000174,2]
[367886471,1750955439002,-1502.78026123,0.00017468,2]
[367886473,1750955439011,-798.58513118,0.00017468,2]
[367886475,1750955439020,-1500.0,0.00017468,2]
[367886477,1750955439030,-1500.0,0.00017468,2]
[367886478,1750955439039,-1500.0,0.00017468,2]
[367886480,1750955439049,-1500.0,0.00017468,2]
[367886482,1750955439060,-750.66,0.00017685,3]
[367886484,1750955439069,-375.32,0.00017685,3]
[367886486,1750955439078,-151.0,0.000178,2]
[367886488,1750955439087,-151.0,0.000178,2]
[367886490,1750955439097,-4702.53453159,0.00017831,2]
[367886492,1750955439106,-420.0,0.0001784,2]
[367886494,1750955439115,-420.0,0.0001784,2]
[367886496,1750955439125,-1680.0,0.0001792,2]
[367886498,1750955439134,-51249.35640203,0.00018,2]
[367886504,1750955439183,-1297.88913375,0.00018,2]
[367886506,1750955439195,-80038.45177173,0.00018,2]
[367886508,1750955439204,-151.0,0.00018,2]
[367886511,1750955439213,-21954.82054918,0.00018,2]
[367886512,1750955439222,-29156.39682197,0.00018,2]
[367886514,1750955439232,-151.0,0.00018,2]
[367886516,1750955439242,-152.101669,0.00018,2]
[367886518,1750955439251,-2000.0,0.00018016,2]
[367886520,1750955439260,-500.0,0.00018016,2]
[367886522,1750955439269,-4588.07040311,0.00018063,2]
[367886524,1750955439278,-904.5454278,0.00018082,2]
[367886526,1750955439288,-151.0,0.000181,2]
[367886528,1750955439298,-4702.53453159,0.00018141,2]
[367886531,1750955439308,-151.0,0.000182,2]
[367886532,1750955439317,-151.0,0.000182,2]
[367886534,1750955439326,-277.85746498,0.000182,2]
[367886537,1750955439336,-4702.53453159,0.00018452,2]
[367886539,1750955439346,-151.0,0.000185,2]
[367886541,1750955439355,-151.0,0.000185,2]
[367886542,1750955439364,-151.0,0.000185,2]
[367886544,1750955439373,-2557.77139467,0.00018564,2]
[367886546,1750955439383,-160.0,0.00018643,2]
[367886548,1750955439392,-12560.17507789,0.00018643,2]
[367886550,1750955439402,-160.0,0.00018643,2]
[367886552,1750955439412,-160.0,0.00018643,2]
[367886554,1750955439422,-160.0,0.00018643,2]
[367886556,1750955439432,-160.0,0.00018643,2]
[367886558,1750955439441,-836.92866116,0.00018643,2]
[367886560,1750955439450,-160.0,0.00018643,2]
[367886562,1750955439461,-846.92323443,0.00018643,2]
[367886564,1750955439470,-214.88139422,0.00018643,2]
[367886566,1750955439478,-230.24506774,0.00018643,2]
[367886568,1750955439488,-213.72380786,0.00018643,2]
[367886570,1750955439497,-160.0,0.00018643,2]
[367886572,1750955439506,-160.0,0.00018643,2]
[367886574,1750955439516,-524.25751634,0.00018644,2]
[367886576,1750955439525,-160.0,0.00018644,2]
[367886578,1750955439538,-4702.53453159,0.00018762,2]
[367886580,1750955439548,-151.0,0.000188,2]
[367886582,1750955439557,-151.0,0.000189,2]
[367886584,1750955439566,-151.0,0.000189,2]
[367886586,1750955439576,-1235.38339822,0.000189,2]
[367886588,1750955439585,-151.0,0.00018978,2]
[367886590,1750955439595,-151.0,0.00018978,2]
[367886591,1750955439605,-151.0,0.00018978,2]
[367886594,1750955439615,-237.355872,0.00018978,2]
[367886595,1750955439624,-237.355872,0.00018978,2]
[367886598,1750955439633,-151.0,0.00018978,2]
[367886601,1750955439642,-151.0,0.00018978,2]
[367886604,1750955439652,-450.57739,0.00018978,2]
[367886607,1750955439662,-151.0,0.00018978,2]
[367886610,1750955439671,-450.57739,0.00018978,2]
[367886613,1750955439680,-151.0,0.00018978,2]
[367886616,1750955439689,-151.000001,0.00018978,2]
[367886619,1750955439698,-666.0,0.00018978,2]
[367886621,1750955439707,-207.4,0.00018978,2]
[367886624,1750955439717,-151.66540298,0.00018978,2]
[367886627,1750955439726,-500.0,0.00018978,2]
[367886630,1750955439735,-500.0,0.00018978,2]
[367886633,1750955439745,-500.0,0.00018978,2]
[367886635,1750955439754,-200.0,0.00018978,2]
[367886638,1750955439764,-500.0,0.00018978,2]
[367886641,1750955439774,-500.0,0.00018978,2]
[367886644,1750955439783,-500.0,0.00018978,2]
[367886647,1750955439793,-500.0,0.00018978,2]
[367886650,1750955439802,-500.0,0.00018978,2]
[367886653,1750955439812,-500.0,0.00018978,2]
[367886656,1750955439822,-5000.0,0.00018978,2]
[367886659,1750955439832,-200.0,0.00018978,2]
[367886662,1750955439841,-500.0,0.00018978,2]
[367886667,1750955439850,-200.0,0.00018978,2]
[367886670,1750955439859,-500.0,0.00018978,2]
[367886673,1750955439868,-200.0,0.00018978,2]
[367886675,1750955439877,-500.0,0.00018978,2]
[367886678,1750955439886,-200.0,0.00018978,2]
[367886681,1750955439896,-500.0,0.00018978,2]
[367886684,1750955439905,-200.0,0.00018978,2]
[367886687,1750955439914,-500.0,0.00018978,2]
[367886690,1750955439924,-1245.65133483,0.00018978,2]
[367886692,1750955439933,-200.0,0.00018978,2]
[367886694,1750955439943,-500.0,0.00018978,2]
[367886696,1750955439953,-200.0,0.00018978,2]
[367886698,1750955439962,-500.0,0.00018978,2]
[367886700,1750955439971,-500.0,0.00018978,2]
[367886702,1750955439980,-500.0,0.00018978,2]
[367886704,1750955439991,-200.0,0.00018978,2]
[367886706,1750955440001,-500.0,0.00018978,2]
[367886708,1750955440010,-200.0,0.00018978,2]
[367886711,1750955440019,-500.0,0.00018978,2]
[367886713,1750955440028,-200.0,0.00018978,2]
[367886716,1750955440038,-500.0,0.00018978,2]
[367886719,1750955440047,-200.0,0.00018978,2]
[367886722,1750955440056,-25000.0,0.00018978,2]
[367886725,1750955440065,-200.0,0.00018978,2]
[367886728,1750955440074,-200.0,0.00018978,2]
[367886731,1750955440084,-10854.55089009,0.00018978,2]
[367886734,1750955440093,-200.0,0.00018978,2]
[367886737,1750955440103,-200.0,0.00018978,2]
[367886740,1750955440112,-200.0,0.00018978,2]
[367886742,1750955440122,-200.0,0.00018978,2]
[367886745,1750955440132,-151.0,0.00018978,2]
[367886748,1750955440141,-151.0,0.00018978,2]
[367886750,1750955440151,-198.0,0.00018978,2]
[367886753,1750955440161,-4588.07040311,0.00018981,2]
[367886756,1750955440171,-1173.68185765,0.00019,2]
[367886759,1750955440181,-690.642,0.00019033,2]
[367886762,1750955440191,-4702.53453159,0.00019072,2]
[367886765,1750955440201,-456.66634739,0.00019088,2]
[367886767,1750955440211,-151.0,0.00019125,2]
[367886770,1750955440220,-151.0,0.00019125,2]
[367886773,1750955440229,-176.257903,0.00019125,2]
[367886775,1750955440240,-151.0,0.00019126,2]
[367886778,1750955440249,-153.964025,0.00019126,2]
[367886781,1750955440258,-153.964025,0.00019126,2]
[367886784,1750955440268,-153.964025,0.00019126,2]
[367886787,1750955440277,-153.964025,0.00019126,2]
[367886790,1750955440286,-151.0,0.00019127,2]
[367886793,1750955440295,-151.0,0.00019127,2]
[367886796,1750955440305,-151.0,0.00019127,2]
[367886798,1750955440314,-153.964025,0.00019127,2]
[367886801,1750955440323,-153.964025,0.00019127,2]
[367886804,1750955440332,-153.964025,0.00019127,2]
[367886807,1750955440341,-153.964025,0.00019127,2]
[367886810,1750955440353,-29022.9130628,0.00019178,2]
[367886814,1750955440363,-151.0,0.000192,2]
[367886817,1750955440372,-151.0,0.00019226,2]
[367886820,1750955440381,-317.409122,0.00019279,2]
[367886823,1750955440391,-317.409122,0.00019279,2]
[367886826,1750955440400,-151.0,0.00019279,2]
[367886829,1750955440410,-151.0,0.00019279,2]
[367886832,1750955440419,-151.0,0.00019279,2]
[367886835,1750955440429,-151.0,0.00019279,2]
[367886838,1750955440439,-151.0,0.000193,2]
[367886841,1750955440448,-151.0,0.000193,2]
[367886844,1750955440457,-153.964025,0.00019325,2]
[367886846,1750955440467,-153.964025,0.00019325,2]
[367886849,1750955440476,-153.964025,0.00019329,2]
[367886852,1750955440486,-153.964025,0.00019329,2]
[367886855,1750955440495,-151.0,0.00019329,2]
[367886860,1750955440513,-151.0,0.00019329,2]
[367886863,1750955440525,-4702.53453159,0.00019383,2]
[367886866,1750955440539,-587.0,0.00019498,2]
[367886869,1750955440549,-587.0,0.00019498,2]
[367886872,1750955440558,-151.0,0.000195,2]
[367886875,1750955440569,-384626.89993,0.00019525,2]
[367886878,1750955440579,-5000.0,0.00019526,2]
[367886881,1750955440588,-25000.0,0.00019526,2]
[367886883,1750955440598,-1363.240215,0.00019567,2]
[367886887,1750955440608,-151.0,0.000196,2]
[367886889,1750955440618,-151.0,0.000196,2]
[367886892,1750955440630,-153.964025,0.00019675,2]
[367886895,1750955440641,-153.964025,0.00019675,2]
[367886898,1750955440650,-1200.0,0.00019684,2]
[367886901,1750955440660,-4702.53453159,0.00019693,2]
[367886904,1750955440669,-126810.13796185,0.00019773,2]
[367886907,1750955440679,-153.964025,0.000198,2]
[367886910,1750955440688,-153.964025,0.000198,2]
[367886912,1750955440698,-153.964025,0.000198,2]
[367886915,1750955440708,-153.964025,0.000198,2]
[367886918,1750955440717,-151.0,0.000198,2]
[367886921,1750955440727,-151.0,0.000198,2]
[367886924,1750955440737,-151.0,0.000198,2]
[367886928,1750955440747,-151.0,0.000198,2]
[367886932,1750955440756,-151.0,0.000198,2]
[367886935,1750955440768,-151.0,0.000198,2]
[367886938,1750955440778,-532.49961082,0.000198,2]
[367886941,1750955440787,-151.0,0.000198,2]
[367886944,1750955440797,-153.940601,0.000198,2]
[367886947,1750955440807,-151.0,0.000198,2]
[367886949,1750955440817,-151.0,0.000198,2]
[367886952,1750955440827,-151.0,0.000198,2]
[367886990,1750955441030,-169.369692,0.000198,2]
[367886993,1750955441040,-237.355872,0.000198,2]
[367886996,1750955441050,-237.355872,0.000198,2]
[367886999,1750955441060,-317.409122,0.000198,2]
[367887001,1750955441070,-317.409122,0.000198,2]
[367887004,1750955441080,-151.0,0.000198,2]
[367887007,1750955441090,-151.0,0.000198,2]
[367887010,1750955441100,-151.0,0.000198,2]
[367887013,1750955441109,-450.57739,0.000198,2]
[367887016,1750955441119,-450.57739,0.000198,2]
[367887019,1750955441128,-151.0,0.000198,2]
[367887022,1750955441137,-151.0,0.000198,2]
[367887024,1750955441147,-168707.62227396,0.000199,2]
[367887026,1750955441156,-2874.18214536,0.000199,2]
[367887028,1750955441166,-151.0,0.000199,2]
[367887030,1750955441175,-151.0,0.000199,2]
[367887032,1750955441185,-151.0,0.000199,2]
[367887034,1750955441195,-153.58,0.000199,2]
[367887036,1750955441204,-344.13661,0.000199,2]
[367887038,1750955441213,-344.136619,0.000199,2]
[367887040,1750955441222,-153.964025,0.000199,2]
[367887042,1750955441231,-153.964023,0.000199,2]
[367887044,1750955441241,-280.18855,0.000199,2]
[367887046,1750955441250,-151.0,0.000199,2]
[367887048,1750955441259,-151.0,0.000199,2]
[367887050,1750955441268,-151.0,0.000199,2]
[367887051,1750955441277,-151.0,0.000199,2]
[367887052,1750955441286,-151.0,0.000199,2]
[367887053,1750955441296,-247.151837,0.000199,2]
[367887054,1750955441307,-151.0,0.000199,2]
[367887055,1750955441317,-199.120396,0.000199,2]
[367887056,1750955441328,-151.0,0.000199,2]
[367887057,1750955441338,-151.0,0.000199,2]
[367887058,1750955441348,-151.0,0.000199,2]
[367887059,1750955441358,-151.0,0.000199,2]
[367887060,1750955441369,-151.0,0.000199,2]
[367887061,1750955441379,-196.462667,0.000199,2]
[367887062,1750955441388,-196.462667,0.000199,2]
[367887063,1750955441398,-151.0,0.000199,2]
[367887064,1750955441407,-151.0,0.000199,2]
[367887065,1750955441416,-151.0,0.000199,2]
[367887066,1750955441425,-151.0,0.000199,2]
[367887067,1750955441434,-186.13720426,0.000199,2]
[367887068,1750955441443,-151.0,0.000199,2]
[367887069,1750955441452,-151.0,0.000199,2]
[367887070,1750955441462,-151.0,0.000199,2]
[367887071,1750955441471,-717.759722,0.000199,2]
[367887072,1750955441480,-151.0,0.000199,2]
[367887074,1750955441490,-717.759722,0.000199,2]
[367887076,1750955441499,-237.355872,0.000199,2]
[367887078,1750955441509,-237.355872,0.000199,2]
[367887080,1750955441518,-317.409122,0.000199,2]
[367887082,1750955441532,-317.409122,0.000199,2]
[367887084,1750955441544,-151.0,0.000199,2]
[367887086,1750955441553,-151.0,0.000199,2]
[367887088,1750955441563,-4588.07040311,0.000199,2]
[367887090,1750955441572,-3723.857893,0.000199,2]
[367887092,1750955441582,-151.0,0.000199,2]
[367887094,1750955441591,-3723.857893,0.000199,2]
[367887097,1750955441602,-151.0,0.000199,2]
[367887098,1750955441612,-450.57739,0.000199,2]
[367887100,1750955441622,-151.0,0.000199,2]
[367887102,1750955441631,-450.57739,0.000199,2]
[367887103,1750955441641,-151.0,0.000199,2]
[367887105,1750955441650,-151.0,0.000199,2]
[367887107,1750955441660,-209.445557,0.000199,2]
[367887109,1750955441670,-151.0,0.000199,2]
[367887111,1750955441679,-888.0,0.00019908,2]
[367887113,1750955441688,-271.102295,0.00019962,2]
[367887115,1750955441698,-151.0,0.00019962,2]
[367887117,1750955441708,-360.44557691,0.00019967,2]
[367887119,1750955441718,-500.0,0.00019973,2]
[367887121,1750955441727,-500.0,0.00019973,2]
[367887123,1750955441736,-500.0,0.00019973,2]
[367887125,1750955441746,-500.0,0.00019973,2]
[367887127,1750955441755,-500.0,0.00019973,2]
[367887129,1750955441765,-500.0,0.00019973,2]
[367887130,1750955441774,-500.0,0.00019973,2]
[367887132,1750955441784,-500.0,0.00019973,2]
[367887134,1750955441793,-200.2532582,0.00019973,2]
[367887136,1750955441803,-500.0,0.00019973,2]
[367887138,1750955441812,-500.0,0.00019973,2]
[367887140,1750955441822,-500.0,0.00019973,2]
[367887142,1750955441832,-580.01754329,0.00019973,2]
[367887144,1750955441842,-500.0,0.00019973,2]
[367887146,1750955441851,-500.0,0.00019973,2]
[367887148,1750955441861,-500.0,0.00019973,2]
[367887150,1750955441870,-500.0,0.00019973,2]
[367887152,1750955441880,-500.0,0.00019973,2]
[367887154,1750955441890,-500.0,0.00019973,2]
[367887156,1750955441899,-500.0,0.00019973,2]
[367887158,1750955441908,-500.0,0.00019973,2]
[367887160,1750955441917,-500.0,0.00019973,2]
[367887162,1750955441926,-500.0,0.00019973,2]
[367887163,1750955441935,-500.0,0.00019973,2]
[367887165,1750955441945,-362.21212231,0.00019973,2]
[367887168,1750955441954,-500.0,0.00019973,2]
[367887169,1750955441964,-432.95481487,0.00019973,2]
[367887171,1750955441972,-600.0,0.00019973,2]
[367887173,1750955441982,-500.0,0.00019973,2]
[367887175,1750955441991,-500.0,0.00019973,2]
[367887177,1750955442001,-500.0,0.00019973,2]
[367887179,1750955442010,-333.4424912,0.00019973,2]
[367887181,1750955442020,-500.0,0.00019973,2]
[367887183,1750955442029,-500.43078147,0.00019973,2]
[367887185,1750955442038,-254.863323,0.00019973,2]
[367887187,1750955442049,-151.0,0.00019973,2]
[367887189,1750955442059,-151.0,0.00019973,2]
[367887191,1750955442068,-220.0,0.00019982,2]
[367887193,1750955442077,-620.33488513,0.00019989,2]
[367887194,1750955442086,-198.72712322,0.00019989,2]
[367887196,1750955442095,-42727.4162671,0.0002,2]
[367887198,1750955442105,-367991.84373057,0.0002,3]
[367887200,1750955442114,-5000.0,0.0002,5]
[367887202,1750955442124,-8000.0,0.0002,4]
[367887204,1750955442133,-18440.0,0.0002,2]
[367887206,1750955442143,-5996.96325077,0.0002,3]
[367887208,1750955442153,-151.0,0.0002,2]
[367887210,1750955442162,-151.0,0.0002,2]
[367887212,1750955442171,-151.0,0.0002,2]
[367887214,1750955442181,-156.042529,0.0002,2]
[367887216,1750955442190,-151.0,0.0002,2]
[367887218,1750955442199,-151.0,0.0002,2]
[367887220,1750955442208,-151.0,0.0002,2]
[367887222,1750955442218,-151.0,0.0002,2]
[367887224,1750955442227,-151.0,0.0002,2]
[367887226,1750955442238,-151.0,0.0002,2]
[367887228,1750955442248,-151.0,0.0002,2]
[367887230,1750955442258,-151.0,0.0002,2]
[367887232,1750955442268,-151.0,0.0002,2]
[367887234,1750955442277,-151.0,0.0002,2]
[367887236,1750955442286,-196.462667,0.0002,2]
[367887238,1750955442295,-196.462667,0.0002,2]
[367887240,1750955442305,-151.0,0.0002,2]
[367887242,1750955442314,-151.0,0.0002,2]
[367887244,1750955442323,-151.0,0.0002,2]
[367887246,1750955442332,-151.0,0.0002,2]
[367887247,1750955442342,-202.632403,0.0002,2]
[367887249,1750955442351,-717.759722,0.0002,2]
[367887251,1750955442361,-717.759722,0.0002,2]
[367887253,1750955442370,-237.355872,0.0002,2]
[367887255,1750955442380,-237.355872,0.0002,2]
[367887257,1750955442389,-317.409122,0.0002,2]
[367887259,1750955442398,-317.409122,0.0002,2]
[367887261,1750955442407,-213.72380786,0.0002,3]
[367887263,1750955442416,-151.0,0.0002,2]
[367887265,1750955442425,-151.0,0.0002,2]
[367887267,1750955442434,-3723.857893,0.0002,2]
[367887269,1750955442443,-151.0,0.0002,2]
[367887271,1750955442452,-3723.857893,0.0002,2]
[367887272,1750955442462,-160.0,0.0002,3]
[367887274,1750955442471,-524.25751634,0.0002,3]
[367887276,1750955442480,-203.94032,0.0002,2]
[367887278,1750955442490,-450.57739,0.0002,2]
[367887280,1750955442500,-151.0,0.0002,2]
[367887282,1750955442509,-450.57739,0.0002,2]
[367887284,1750955442518,-151.0,0.0002,2]
[367887287,1750955442528,-151.0,0.0002,2]
[367887289,1750955442539,-160.0,0.0002,3]
[367887292,1750955442549,-151.0,0.0002,2]
[367887294,1750955442559,-4702.53453159,0.00020003,2]
[367887296,1750955442568,-168.0,0.00020031,2]
[367887298,1750955442579,-220.0,0.00020035,2]
[367887300,1750955442588,-5000.0,0.00020074,2]
[367887302,1750955442598,-220.0,0.00020084,2]
[367887304,1750955442608,-888.0,0.00020174,2]
[367887306,1750955442617,-220.0,0.00020177,2]
[367887307,1750955442627,-267.393933,0.00020187,2]
[367887309,1750955442636,-7516.11865376,0.00020214,2]
[367887311,1750955442646,-451.18539383,0.00020228,2]
[367887313,1750955442655,-151.0,0.00020313,2]
[367887317,1750955442664,-151.0,0.00020313,2]
[367887321,1750955442673,-151.0,0.00020313,2]
[367887324,1750955442682,-151.0,0.00020313,2]
[367887326,1750955442692,-151.0,0.00020313,2]
[367887329,1750955442701,-151.0,0.00020313,2]
[367887332,1750955442711,-151.0,0.00020313,2]
[367887334,1750955442721,-151.0,0.00020313,2]
[367887336,1750955442730,-151.0,0.00020313,2]
[367887339,1750955442741,-151.0,0.00020313,2]
[367887342,1750955442750,-151.0,0.00020313,2]
[367887345,1750955442758,-196.462667,0.00020313,2]
[367887346,1750955442768,-196.462667,0.00020313,2]
[367887348,1750955442777,-151.0,0.00020313,2]
[367887350,1750955442787,-151.0,0.00020313,2]
[367887352,1750955442797,-151.0,0.00020313,2]
[367887354,1750955442807,-151.0,0.00020313,2]
[367887356,1750955442816,-717.759722,0.00020313,2]
[367887358,1750955442826,-717.759722,0.00020313,2]
[367887360,1750955442835,-237.355872,0.00020313,2]
[367887362,1750955442844,-237.355872,0.00020313,2]
[367887364,1750955442854,-317.409122,0.00020313,2]
[367887366,1750955442863,-317.409122,0.00020313,2]
[367887368,1750955442872,-151.0,0.00020313,2]
[367887370,1750955442881,-161.119433,0.00020313,2]
[367887372,1750955442891,-3723.857893,0.00020313,2]
[367887374,1750955442900,-151.0,0.00020313,2]
[367887376,1750955442910,-3723.857893,0.00020313,2]
[367887378,1750955442919,-450.57739,0.00020313,2]
[367887380,1750955442928,-151.0,0.00020313,2]
[367887382,1750955442938,-450.57739,0.00020313,2]
[367887384,1750955442947,-151.0,0.00020313,2]
[367887386,1750955442956,-151.0,0.00020313,2]
[367887388,1750955442966,-151.0,0.00020313,2]
[367887390,1750955442976,-4702.53453159,0.00020314,3]
[367887392,1750955442986,-215.0738,0.00020347,2]
[367887394,1750955442995,-171.0,0.00020384,2]
[367887396,1750955443005,-640.0,0.000204,2]
[367887398,1750955443015,-151.0,0.00020418,2]
[367887400,1750955443025,-151.0,0.00020418,2]
[367887402,1750955443037,-151.0,0.00020418,2]
[367887404,1750955443047,-151.0,0.00020418,2]
[367887406,1750955443056,-158.493929,0.00020502,2]
[367887408,1750955443066,-158.493929,0.00020515,4]
[367887410,1750955443075,-1000.0,0.00020521,2]
[367887411,1750955443085,-1000.0,0.00020521,2]
[367887413,1750955443094,-1000.0,0.00020521,2]
[367887415,1750955443104,-1000.0,0.00020521,2]
[367887417,1750955443113,-1000.0,0.00020521,2]
[367887419,1750955443123,-153.17919225,0.00020521,2]
[367887421,1750955443134,-464.29479316,0.00020521,2]
[367887423,1750955443143,-1000.0,0.00020521,2]
[367887425,1750955443153,-1000.0,0.00020521,2]
[367887427,1750955443163,-1000.0,0.00020521,2]
[367887428,1750955443172,-1000.0,0.00020521,2]
[367887430,1750955443182,-1000.0,0.00020521,2]
[367887432,1750955443191,-1200.0,0.00020521,2]
[367887434,1750955443200,-547.72040314,0.00020521,2]
[367887436,1750955443209,-1000.0,0.00020521,2]
[367887438,1750955443219,-1000.0,0.00020521,2]
[367887440,1750955443228,-151.0,0.00020548,2]
[367887442,1750955443239,-244.81484,0.00020548,2]
[367887444,1750955443248,-168.0,0.00020595,2]
[367887446,1750955443257,-3484.66,0.000206,2]
[367887448,1750955443267,-5000.0,0.00020622,2]
[367887450,1750955443276,-4702.53453159,0.00020624,3]
[367887451,1750955443285,-662.176,0.00020659,2]
[367887453,1750955443294,-1714.67675185,0.000207,2]
[367887455,1750955443303,-53211.28186519,0.000207,2]
[367887457,1750955443313,-7516.11865369,0.00020844,2]
[367887459,1750955443322,-200.0,0.0002085,2]
[367887461,1750955443335,-6000.0,0.00020896,2]
[367887463,1750955443344,-53908.99932186,0.00020898,2]
[367887465,1750955443354,-151.0,0.000209,2]
[367887467,1750955443363,-151.0,0.000209,2]
[367887469,1750955443373,-151.0,0.000209,2]
[367887471,1750955443383,-151.0,0.000209,2]
[367887473,1750955443392,-207.993682,0.000209,2]
[367887475,1750955443402,-4702.53453159,0.00020934,4]
[367887477,1750955443411,-152.46693953,0.00021,2]
[367887479,1750955443421,-2000.0,0.00021,2]
[367887481,1750955443430,-511.83,0.00021,7]
[367887483,1750955443439,-151.0,0.00021,2]
[367887485,1750955443448,-151.0,0.00021,2]
[367887487,1750955443458,-151.0,0.00021,2]